bitfinex/quotes_BTCUSD_20250607
["timestamp","ask_amount","ask_price","bid_price","bid_amount"]
[1749300626238,5.70135619,105610.0,105600.0,0.29829623]
[1749300626477,5.70135618,105610.0,105600.0,0.29829623]
[1749300627236,5.70134486,105610.0,105600.0,0.29829623]
[1749300627668,5.69470567,105610.0,105600.0,0.29829623]
[1749300627891,5.7013405,105610.0,105600.0,0.29829623]
[1749300628446,5.7013405,105610.0,105600.0,5.623e-05]
[1749300628695,5.7013405,105610.0,105600.0,0.29829623]
[1749300629138,5.28390644,105610.0,105600.0,0.29829623]
[1749300629353,5.22727153,105610.0,105600.0,0.29829623]
[1749300629566,5.23390582,105610.0,105600.0,0.29829623]
[1749300630397,5.3303053,105610.0,105600.0,5.623e-05]
[1749300630611,5.23390582,105610.0,105600.0,0.29825623]
[1749300630827,5.23391476,105610.0,105600.0,0.29825623]
[1749300631034,5.21621627,105610.0,105600.0,0.29825623]
[1749300631245,5.21621626,105610.0,105600.0,0.29825623]
[1749300631685,5.23391481,105610.0,105600.0,0.29825623]
[1749300631915,5.22727782,105610.0,105600.0,0.29825623]
[1749300632144,5.23391476,105610.0,105600.0,0.29825623]
[1749300632604,5.21621632,105610.0,105600.0,0.29825623]
[1749300632827,5.23391502,105610.0,105600.0,0.29825623]
[1749300633032,5.23391504,105610.0,105600.0,0.29825623]
[1749300633240,5.23391493,105610.0,105600.0,0.29825623]
[1749300633448,1.10911193,105610.0,105600.0,0.29825623]
[1749300633656,5.23391493,105610.0,105600.0,0.29825623]
[1749300633867,5.23391692,105610.0,105600.0,0.29825623]
[1749300634096,5.23391768,105610.0,105600.0,0.29825623]
[1749300634309,5.23391756,105610.0,105600.0,0.29825623]
[1749300634516,5.22727981,105610.0,105600.0,0.29825623]
[1749300634721,5.23391748,105610.0,105600.0,0.29825623]
[1749300635815,5.23392062,105610.0,105600.0,0.29825623]
[1749300636018,5.20957931,105610.0,105600.0,0.29825623]
[1749300636231,5.2388282,105610.0,105600.0,0.29825623]
[1749300636446,5.24989297,105610.0,105600.0,0.29825623]
[1749300636646,5.23392164,105610.0,105600.0,0.29825623]
[1749300636899,5.23392143,105610.0,105600.0,0.29825623]
[1749300637569,5.23392137,105610.0,105600.0,0.29825623]
[1749300637797,5.20957931,105610.0,105600.0,0.29825623]
[1749300638041,5.21621808,105610.0,105600.0,0.29825623]
[1749300638288,5.24990369,105610.0,105600.0,0.29825623]
[1749300638530,5.24990369,105610.0,105600.0,5.623e-05]
[1749300638775,5.65133397,105610.0,105600.0,0.29817623]
[1749300639472,5.65133485,105610.0,105600.0,0.29817623]
[1749300639724,5.63363124,105610.0,105600.0,0.29817623]
[1749300639921,5.63363129,105610.0,105600.0,0.29817623]
[1749300640338,5.65133739,105610.0,105600.0,0.29817623]
[1749300640885,5.25654621,105610.0,105600.0,0.29817623]
[1749300641107,5.23884011,105610.0,105600.0,0.29817623]
[1749300641330,5.2388409,105610.0,105600.0,0.29817623]
[1749300641552,5.23884088,105610.0,105600.0,0.29817623]
[1749300641798,5.2322003,105610.0,105600.0,0.29817623]
[1749300642029,4.84404967,105610.0,105600.0,0.29817623]
[1749300642259,5.25654898,105610.0,105600.0,0.29817623]
[1749300642691,5.25654825,105610.0,105600.0,0.29817623]
[1749300642917,5.25654797,105610.0,105600.0,0.29817623]
[1749300643161,5.25654812,105610.0,105600.0,0.29817623]
[1749300643392,5.24990781,105610.0,105600.0,0.29817623]
[1749300643621,5.23884177,105610.0,105600.0,0.29809623]
[1749300643846,5.25655238,105610.0,105600.0,0.29809623]
[1749300644260,5.28490793,105610.0,105600.0,0.29809623]
[1749300644491,5.27826646,105610.0,105600.0,0.29809623]
[1749300644706,5.26719732,105610.0,105600.0,0.29809623]
[1749300644910,5.27826646,105610.0,105600.0,0.29809623]
[1749300645135,5.26719732,105610.0,105600.0,0.29809623]
[1749300645341,5.26055585,105610.0,105600.0,0.29809623]
[1749300645557,5.26719737,105610.0,105600.0,0.29809623]
[1749300645806,5.26055585,105610.0,105600.0,0.29809623]
[1749300646020,5.28494497,105610.0,105600.0,0.29809623]
[1749300646374,4.89015396,105610.0,105600.0,0.29809623]
[1749300646606,5.26720749,105610.0,105600.0,0.29809623]
[1749300646829,5.26055585,105610.0,105600.0,0.29809623]
[1749300647066,5.2672074,105610.0,105600.0,0.29809623]
[1749300647315,5.26055585,105610.0,105600.0,0.29809623]
[1749300647556,5.28494443,105610.0,105600.0,0.29809623]
[1749300647778,5.28494458,105610.0,105600.0,0.29809623]
[1749300647997,5.26055585,105610.0,105600.0,0.29809623]
[1749300648220,5.28494483,105610.0,105600.0,0.29809623]
[1749300648446,5.27829362,105610.0,105600.0,0.29809623]
[1749300648663,5.28494395,105610.0,105600.0,0.29809623]
[1749300648888,5.2782926,105610.0,105600.0,0.29809623]
[1749300649109,5.28494388,105610.0,105600.0,0.29809623]
[1749300649323,5.28494388,105610.0,105600.0,0.29801623]
[1749300649958,5.2782926,105610.0,105600.0,0.29801623]
[1749300650172,5.26721361,105610.0,105600.0,0.29801623]
[1749300650378,5.28496765,105610.0,105600.0,0.29801623]
[1749300650853,5.27830989,105610.0,105600.0,0.29801623]
[1749300651062,5.38136713,105610.0,105600.0,5.623e-05]
[1749300651296,5.38136715,105610.0,105600.0,0.29801623]
[1749300651508,5.32277238,105610.0,105600.0,0.29801623]
[1749300651725,5.30501868,105610.0,105600.0,0.29801623]
[1749300651932,5.31611555,105610.0,105600.0,0.29801623]
[1749300652198,5.32277368,105610.0,105600.0,0.29801623]
[1749300652639,5.30501868,105610.0,105600.0,0.29801623]
[1749300652857,5.32278047,105610.0,105600.0,0.29801623]
[1749300653078,5.29836056,105610.0,105600.0,0.29801623]
[1749300653504,5.3161205,105610.0,105600.0,0.29801623]
[1749300653718,5.29836056,105610.0,105600.0,0.29801623]
[1749300653930,5.28497493,105610.0,105600.0,0.29801623]
[1749300654151,5.26721564,105610.0,105600.0,0.29801623]
[1749300654623,5.26055585,105610.0,105600.0,0.29801623]
[1749300654836,5.2849751,105610.0,105600.0,0.29801623]
[1749300655258,5.28497507,105610.0,105600.0,0.29801623]
[1749300655471,5.26721564,105610.0,105600.0,0.29801623]
[1749300655690,5.26721563,105610.0,105600.0,0.29801623]
[1749300655916,5.26055585,105610.0,105600.0,0.29801623]
[1749300656124,5.27831466,105610.0,105600.0,0.29801623]
[1749300656325,5.2672154,105610.0,105600.0,0.29801623]
[1749300656534,5.26055585,105610.0,105600.0,0.29801623]
[1749300656749,5.27831451,105610.0,105600.0,0.29801623]
[1749300656962,5.26055585,105610.0,105600.0,0.29801623]
[1749300657397,5.28497482,105610.0,105600.0,0.29801623]
[1749300657606,5.2849744,105610.0,105600.0,0.29801623]
[1749300657814,5.26721556,105610.0,105600.0,0.29801623]
[1749300658024,5.28497479,105610.0,105600.0,5.623e-05]
[1749300658236,5.26055585,105610.0,105600.0,0.29789623]
[1749300658508,5.32277999,105610.0,105600.0,0.29789623]
[1749300658760,5.31612022,105610.0,105600.0,0.29789623]
[1749300658952,5.29836056,105610.0,105600.0,0.29789623]
[1749300659160,5.3227801,105610.0,105600.0,0.29789623]
[1749300659385,5.30502043,105610.0,105600.0,0.29789623]
[1749300659605,5.29836056,105610.0,105600.0,0.29789623]
[1749300660024,5.30502062,105610.0,105600.0,0.29789623]
[1749300660256,5.32278079,105610.0,105600.0,0.29789623]
[1749300660467,5.30502062,105610.0,105600.0,0.29789623]
[1749300660668,5.31616073,105610.0,105600.0,0.29789623]
[1749300660840,5.32282079,105610.0,105600.0,0.29789623]
[1749300661080,5.31616073,105610.0,105600.0,0.29789623]
[1749300661283,5.30506062,105610.0,105600.0,0.29789623]
[1749300661509,5.26725591,105610.0,105600.0,0.29789623]
[1749300661716,5.27835594,105610.0,105600.0,0.29789623]
[1749300661925,5.26059585,105610.0,105600.0,0.29789623]
[1749300662318,4.92059585,105610.0,105600.0,0.29789623]
[1749300662592,5.28501579,105610.0,105600.0,0.29789623]
[1749300662816,5.26725576,105610.0,105600.0,0.29789623]
[1749300663035,5.28501549,105610.0,105600.0,0.29789623]
[1749300663286,5.2850155,105610.0,105600.0,0.29789623]
[1749300663506,5.2783556,105610.0,105600.0,0.29789623]
[1749300663737,5.28501438,105610.0,105600.0,0.29789623]
[1749300663958,5.26725545,105610.0,105600.0,0.29789623]
[1749300664176,5.2850144,105610.0,105600.0,0.29789623]
[1749300664847,5.26059585,105610.0,105600.0,0.29789623]
[1749300665055,5.2850144,105610.0,105600.0,0.29789623]
[1749300666150,5.28500889,105610.0,105600.0,0.29789623]
[1749300666385,5.26725395,105610.0,105600.0,0.29789623]
[1749300666669,5.27835079,105610.0,105600.0,0.29789623]
[1749300666904,5.26725395,105610.0,105600.0,0.29789623]
[1749300667113,5.28500889,105610.0,105600.0,0.29789623]
[1749300667336,5.26725395,105610.0,105600.0,0.29789623]
[1749300667560,5.28500889,105610.0,105600.0,0.29789623]
[1749300667782,5.26725395,105610.0,105600.0,0.29789623]
[1749300668004,5.27835079,105610.0,105600.0,0.29789623]
[1749300668229,5.28500889,105610.0,105600.0,0.29789623]
[1749300668446,5.2322403,105610.0,105600.0,0.29789623]
[1749300668675,5.23889827,105610.0,105600.0,0.29789623]
[1749300668934,5.25665292,105610.0,105600.0,0.29789623]
[1749300669592,5.25665092,105610.0,105600.0,0.29789623]
[1749300669814,5.25665026,105610.0,105600.0,0.29789623]
[1749300670032,5.2322403,105610.0,105600.0,0.29789623]
[1749300670282,5.25665041,105610.0,105600.0,0.29789623]
[1749300670994,4.86185923,105610.0,105600.0,0.29789623]
[1749300671244,5.24999311,105610.0,105600.0,0.29789623]
[1749300671455,5.25665617,105610.0,105600.0,0.29789623]
[1749300671877,5.2499973,105610.0,105600.0,0.29789623]
[1749300672089,5.23889917,105610.0,105600.0,0.29789623]
[1749300672303,5.25665617,105610.0,105600.0,0.29789623]
[1749300672532,5.25665581,105610.0,105600.0,0.29789623]
[1749300672971,5.25665256,105610.0,105600.0,0.29789623]
[1749300673645,5.25665735,105610.0,105600.0,0.29789623]
[1749300673884,5.25665734,105610.0,105600.0,0.29789623]
[1749300674112,5.2388995,105610.0,105600.0,0.29789623]
[1749300674328,5.25665736,105610.0,105600.0,0.54361623]
[1749300675363,5.24999816,105610.0,105600.0,0.54361623]
[1749300675575,5.25665736,105610.0,105600.0,0.54361623]
[1749300675782,5.24999816,105610.0,105600.0,0.54361623]
[1749300675992,5.25665736,105610.0,105600.0,0.54337623]
[1749300676201,5.25665736,105610.0,105600.0,0.33913623]
[1749300676432,5.28501291,105610.0,105600.0,0.63669623]
[1749300676836,5.28501291,105610.0,105600.0,0.24577623]
[1749300677053,5.67980495,105610.0,105600.0,0.63669623]
[1749300677259,5.26725537,105610.0,105600.0,0.63669623]
[1749300677465,5.26725542,105610.0,105600.0,0.63669623]
[1749300677700,5.2783547,105610.0,105600.0,0.63669623]
[1749300677944,5.33501426,105610.0,105600.0,0.63669623]
[1749300678357,5.31725541,105610.0,105600.0,0.63669623]
[1749300678569,5.33501284,105610.0,105600.0,0.63669623]
[1749300678773,5.33501226,105610.0,105600.0,0.63669623]
[1749300678985,5.31725485,105610.0,105600.0,0.63669623]
[1749300679198,5.32835254,105610.0,105600.0,0.63669623]
[1749300679413,5.3283526,105610.0,105600.0,0.63669623]
[1749300679625,5.33501149,105610.0,105600.0,0.24577623]
[1749300679837,5.33501149,105610.0,105600.0,0.63665623]
[1749300680686,5.31059585,105610.0,105600.0,0.63665623]
[1749300680896,5.31725462,105610.0,105600.0,0.63665623]
[1749300681281,5.33501143,105610.0,105600.0,0.63665623]
[1749300682010,5.33501115,105610.0,105600.0,0.24577623]
[1749300682217,5.3172543,105610.0,105600.0,0.63665623]
[1749300682551,5.33501003,105610.0,105600.0,0.63665623]
[1749300683147,5.31059585,105610.0,105600.0,0.63665623]
[1749300683350,5.33501003,105610.0,105600.0,0.63665623]
[1749300683849,5.3350113,105610.0,105600.0,0.63665623]
[1749300684154,5.32835289,105610.0,105600.0,0.63665623]
[1749300684573,5.31725474,105610.0,105600.0,0.63665623]
[1749300684773,5.32835289,105610.0,105600.0,0.63665623]
[1749300684978,5.31059585,105610.0,105600.0,0.39093623]
[1749300685179,5.33501178,105610.0,105600.0,0.39093623]
[1749300685646,5.32835289,105610.0,105600.0,0.39093623]
[1749300685829,5.33501178,105610.0,105600.0,0.39093623]
[1749300686040,5.31725474,105610.0,105600.0,0.39093623]
[1749300686211,5.32835289,105610.0,105600.0,0.39093623]
[1749300686424,5.33501178,105610.0,105600.0,0.39093623]
[1749300687694,5.31059585,105610.0,105600.0,0.39093623]
[1749300687897,5.31725509,105610.0,105600.0,0.39093623]
[1749300688109,5.30665748,105610.0,105600.0,0.39093623]
[1749300688310,5.28889953,105610.0,105600.0,0.39093623]
[1749300688513,5.30665676,105610.0,105600.0,0.39093623]
[1749300688821,4.91186558,105610.0,105600.0,0.39093623]
[1749300689017,1.18185356,105610.0,105600.0,0.39093623]
[1749300689463,1.18185337,105610.0,105600.0,0.39093623]
[1749300689643,1.1818536,105610.0,105600.0,0.39093623]
[1749300689873,1.17519461,105610.0,105600.0,0.39093623]
[1749300690257,1.1818536,105610.0,105600.0,0.39093623]
[1749300691279,1.16409629,105610.0,105600.0,0.39093623]
[1749300691850,1.1818536,105610.0,105600.0,0.39093623]
[1749300692771,1.18185426,105610.0,105600.0,0.39093623]
[1749300692982,1.17519527,105610.0,105600.0,0.39093623]
[1749300693417,1.18185451,105610.0,105600.0,0.39093623]
[1749300693627,1.1574373,105610.0,105600.0,0.39093623]
[1749300693828,1.18185451,105610.0,105600.0,0.39093623]
[1749300694452,1.17519527,105610.0,105600.0,0.39093623]
[1749300694652,1.18185451,105610.0,105600.0,0.39093623]
[1749300694852,1.17519527,105610.0,105600.0,0.39093623]
[1749300695062,1.17530837,105610.0,105600.0,0.39093623]
[1749300695275,1.16420927,105610.0,105600.0,0.39093623]
[1749300695478,1.1819669,105610.0,105600.0,0.39093623]
[1749300696419,1.1753077,105610.0,105600.0,0.39093623]
[1749300696714,1.1819669,105610.0,105600.0,0.39093623]
[1749300697068,1.16420902,105610.0,105600.0,0.39093623]
[1749300697292,1.5770952,105610.0,105600.0,0.39093623]
[1749300697882,1.57709582,105610.0,105600.0,0.39093623]
[1749300698355,1.57709605,105610.0,105600.0,0.39093623]
[1749300698556,1.55933755,105610.0,105600.0,0.39093623]
[1749300698751,1.57709605,105610.0,105600.0,0.39093623]
[1749300698909,1.57709526,105610.0,105600.0,0.39093623]
[1749300699116,1.55267812,105610.0,105600.0,0.39093623]
[1749300699326,1.57709526,105610.0,105600.0,0.39093623]
[1749300700071,1.55267812,105610.0,105600.0,0.39093623]
[1749300700271,1.57709526,105610.0,105600.0,0.39093623]
[1749300701785,1.55933756,105610.0,105600.0,0.39093623]
[1749300702011,1.57709614,105610.0,105600.0,0.39093623]
[1749300702212,1.55267812,105610.0,105600.0,0.39093623]
[1749300702449,1.57709616,105610.0,105600.0,0.39093623]
[1749300703153,1.57709626,105610.0,105600.0,0.39093623]
[1749300703657,1.55933761,105610.0,105600.0,0.39093623]
[1749300703974,1.57709626,105610.0,105600.0,0.39093623]
[1749300704178,1.55267812,105610.0,105600.0,0.39093623]
[1749300704419,1.55933764,105610.0,105600.0,0.39093623]
[1749300704599,1.60551336,105610.0,105600.0,0.39093623]
[1749300705466,1.58775488,105610.0,105600.0,0.39093623]
[1749300706087,1.60551495,105610.0,105600.0,0.39093623]
[1749300707331,1.60551512,105610.0,105600.0,0.39093623]
[1749300707541,1.58775504,105610.0,105600.0,0.39093623]
[1749300707754,1.60551512,105610.0,105600.0,0.39093623]
[1749300707971,5.71255804,105610.0,105600.0,0.09341623]
[1749300708202,5.72365828,105610.0,105600.0,0.39025623]
[1749300708422,5.80769663,105610.0,105600.0,5.623e-05]
[1749300708632,5.74370272,105610.0,105600.0,0.39025623]
[1749300708839,5.76812685,105610.0,105600.0,0.39025623]
[1749300709300,5.76146078,105610.0,105600.0,0.39025623]
[1749300709539,5.74370272,105610.0,105600.0,0.39025623]
[1749300709743,5.76146072,105610.0,105600.0,0.39025623]
[1749300709942,5.76811997,105610.0,105600.0,0.39025623]
[1749300710081,5.76811996,105610.0,105600.0,0.39025623]
[1749300710284,5.76811996,105610.0,105600.0,0.39021623]
[1749300710520,5.76811989,105610.0,105600.0,0.39021623]
[1749300710746,5.76811988,105610.0,105600.0,0.39021623]
[1749300710890,5.73031516,105610.0,105600.0,0.39021623]
[1749300711309,5.73031509,105610.0,105600.0,0.39021623]
[1749300711627,5.73031522,105610.0,105600.0,0.39021623]
[1749300711864,5.730316,105610.0,105600.0,0.39021623]
[1749300712248,5.730316,105610.0,105600.0,0.39017623]
[1749300712742,5.72365673,105610.0,105600.0,0.39017623]
[1749300713465,5.730316,105610.0,105600.0,5.623e-05]
[1749300713681,5.730316,105610.0,105600.0,0.29709623]
[1749300713825,5.73031522,105610.0,105600.0,0.29709623]
[1749300714058,5.72365673,105610.0,105600.0,0.29709623]
[1749300714726,5.73031528,105610.0,105600.0,0.29709623]
[1749300714938,5.72365673,105610.0,105600.0,0.29709623]
[1749300715164,5.73031528,105610.0,105600.0,0.29709623]
[1749300715850,5.73031528,105610.0,105600.0,5.623e-05]
[1749300716041,5.73031532,105610.0,105600.0,0.29705623]
[1749300716648,5.73031532,105610.0,105600.0,5.623e-05]
[1749300716866,5.81812013,105610.0,105600.0,0.29701623]
[1749300717423,5.81146144,105610.0,105600.0,0.29701623]
[1749300717774,5.81811842,105610.0,105600.0,0.29701623]
[1749300718407,5.81146144,105610.0,105600.0,0.29701623]
[1749300718620,5.02819894,105610.0,105600.0,0.29701623]
[1749300718831,5.81811854,105610.0,105600.0,0.29701623]
[1749300719681,5.81146144,105610.0,105600.0,0.29701623]
[1749300720278,5.81811854,105610.0,105600.0,0.29701623]
[1749300720489,5.78031383,105610.0,105600.0,0.29701623]
[1749300721110,5.77365673,105610.0,105600.0,0.29701623]
[1749300721309,5.78031368,105610.0,105600.0,0.29701623]
[1749300721451,5.78031369,105610.0,105600.0,0.29701623]
[1749300721651,5.78031373,105610.0,105600.0,0.29701623]
[1749300721854,5.77365673,105610.0,105600.0,0.29701623]
[1749300722095,5.78031373,105610.0,105600.0,0.29701623]
[1749300722326,5.7803135,105610.0,105600.0,0.29701623]
[1749300722542,5.77365673,105610.0,105600.0,0.29701623]
[1749300722977,5.7803135,105610.0,105600.0,0.29701623]
[1749300723647,5.77365673,105610.0,105600.0,0.29701623]
[1749300723862,5.7803135,105610.0,105600.0,0.29701623]
[1749300724300,5.77365673,105610.0,105600.0,0.29701623]
[1749300724521,5.78031335,105610.0,105600.0,0.29701623]
[1749300724939,5.77365673,105610.0,105600.0,5.623e-05]
[1749300725166,5.77365673,105610.0,105600.0,0.29693623]
[1749300725604,5.78031335,105610.0,105600.0,0.29689623]
[1749300726052,5.78031335,105610.0,105600.0,5.623e-05]
[1749300726272,5.77365673,105610.0,105600.0,0.29689623]
[1749300726944,5.78031335,105610.0,105600.0,0.29689623]
[1749300727166,5.77365673,105610.0,105600.0,0.29689623]
[1749300727455,5.78031335,105610.0,105600.0,0.29689623]
[1749300727677,5.77365673,105610.0,105600.0,0.29689623]
[1749300728611,5.77365673,105610.0,105600.0,5.623e-05]
[1749300728827,0.19891995,105570.0,105560.0,0.4947537]
[1749300729054,0.43284818,105570.0,105560.0,0.91281282]
[1749300729275,0.41390369,105570.0,105560.0,0.92228547]
[1749300729478,0.61282373,105570.0,105560.0,0.88434482]
[1749300730103,0.61287152,105570.0,105560.0,0.87487199]
[1749300730311,0.61487152,105570.0,105560.0,0.49470491]
[1749300730519,0.61487152,105570.0,105560.0,0.88434491]
[1749300730721,0.61487152,105570.0,105560.0,0.89381774]
[1749300730933,0.22938416,105570.0,105560.0,0.89381774]
[1749300731174,0.42542368,105570.0,105560.0,0.90329039]
[1749300731382,0.03046323,105570.0,105560.0,0.90329039]
[1749300731598,0.00204779,105570.0,105560.0,1.39464961]
[1749300731803,0.01151954,105570.0,105560.0,1.39464961]
[1749300732007,0.02099156,105570.0,105560.0,1.39464961]
[1749300732213,0.01151954,105570.0,105560.0,1.39464961]
[1749300733108,0.02099147,105570.0,105560.0,1.39464961]
[1749300735087,0.00204779,105570.0,105560.0,1.39464961]
[1749300735290,0.02099112,105570.0,105560.0,1.39464961]
[1749300735682,0.01151937,105570.0,105560.0,1.39464961]
[1749300735870,0.02099112,105570.0,105560.0,1.39464961]
[1749300736085,0.01151937,105570.0,105560.0,1.39464961]
[1749300736286,0.02099112,105570.0,105560.0,1.39464961]
[1749300736461,0.03046305,105570.0,105560.0,1.39464961]
[1749300737195,0.01151937,105570.0,105560.0,1.39464961]
[1749300737355,0.02099112,105570.0,105560.0,1.39464961]
[1749300737557,0.03046305,105570.0,105560.0,1.39464961]
[1749300737762,0.02099112,105570.0,105560.0,1.39464961]
[1749300737964,0.03046305,105570.0,105560.0,1.39464961]
[1749300738512,0.01151937,105570.0,105560.0,1.39464961]
[1749300738871,0.02099112,105570.0,105560.0,1.39464961]
[1749300739263,0.01151937,105570.0,105560.0,1.39464961]
[1749300739778,0.02099121,105570.0,105560.0,1.39464961]
[1749300739992,0.03046314,105570.0,105560.0,0.99968987]
[1749300740200,0.02099112,105570.0,105560.0,0.99968987]
[1749300740404,0.01151937,105570.0,105560.0,0.99968987]
[1749300740616,0.02099112,105570.0,105560.0,0.99968987]
[1749300740836,0.01151937,105570.0,105560.0,0.99968987]
[1749300741270,0.02099112,105570.0,105560.0,0.99968987]
[1749300741449,0.02099104,105570.0,105560.0,0.99968987]
[1749300743768,0.03046279,105570.0,105560.0,0.99968987]
[1749300746792,0.03993463,105570.0,105560.0,0.99968987]
[1749300747538,0.03993507,105570.0,105560.0,0.99968987]
[1749300747746,0.04940727,105570.0,105560.0,0.99968987]
[1749300747964,0.03993507,105570.0,105560.0,0.98428987]
[1749300748167,0.03993507,105570.0,105560.0,0.98400987]
[1749300748168,0.03046305,105570.0,105560.0,0.98400987]
[1749300749219,0.02099121,105570.0,105560.0,0.98400987]
[1749300749431,0.02099121,105570.0,105560.0,1.39436961]
[1749300750024,0.01151946,105570.0,105560.0,1.39436961]
[1749300750806,0.01151937,105570.0,105560.0,1.39436961]
[1749300751109,0.02099112,105570.0,105560.0,1.39436961]
[1749300751311,0.01151937,105570.0,105560.0,1.39436961]
[1749300751514,0.02099112,105570.0,105560.0,1.39436961]
[1749300751727,0.02099104,105570.0,105560.0,1.39436961]
[1749300752533,0.02099104,105570.0,105560.0,0.99940987]
[1749300752749,0.03046288,105570.0,105560.0,0.99940987]
[1749300753284,0.02099104,105570.0,105560.0,0.99940987]
[1749300753961,0.03046279,105570.0,105560.0,0.99940987]
[1749300754469,0.02099104,105570.0,105560.0,0.99940987]
[1749300754876,0.01151937,105570.0,105560.0,0.99940987]
[1749300756377,0.02099112,105570.0,105560.0,0.99940987]
[1749300756693,0.01151937,105570.0,105560.0,0.99940987]
[1749300756982,0.02099104,105570.0,105560.0,0.99940987]
[1749300758214,0.01151937,105570.0,105560.0,0.99940987]
[1749300758642,0.01151937,105570.0,105560.0,0.61004987]
[1749300758851,0.01151937,105570.0,105560.0,0.99896987]
[1749300760103,0.00204779,105570.0,105560.0,0.99896987]
[1749300760496,0.01151946,105570.0,105560.0,1.39392961]
[1749300761350,0.01151946,105570.0,105560.0,1.37852961]
[1749300761351,0.00204779,105570.0,105560.0,1.37852961]
[1749300761561,0.01151946,105570.0,105560.0,1.37848961]
[1749300761766,0.00204779,105570.0,105560.0,1.37848961]
[1749300762144,0.01151937,105570.0,105560.0,1.37848961]
[1749300762605,0.00204779,105570.0,105560.0,1.37848961]
[1749300762841,0.01151937,105570.0,105560.0,0.98352987]
[1749300763045,0.01151937,105570.0,105560.0,1.37848961]
[1749300763612,0.02099104,105570.0,105560.0,1.36274961]
[1749300764023,0.00204779,105570.0,105560.0,1.37844961]
[1749300764236,0.00204779,105570.0,105560.0,1.78880935]
[1749300764402,0.00204779,105570.0,105560.0,1.81727535]
[1749300768782,0.56609794,105610.0,105600.0,0.21780192]
[1749300769015,0.56609794,105610.0,105600.0,1.34364114]
[1749300769215,0.56614586,105610.0,105600.0,1.34364114]
[1749300769412,0.57561403,105610.0,105600.0,1.37209814]
[1749300769627,0.57561403,105610.0,105600.0,0.6809384]
[1749300769767,0.57561394,105610.0,105600.0,0.9771384]
[1749300770483,0.59854586,105610.0,105600.0,0.9771384]
[1749300770804,0.60801394,105610.0,105600.0,0.9771384]
[1749300771001,0.59854586,105610.0,105600.0,0.9771384]
[1749300771203,0.60801394,105610.0,105600.0,0.9791384]
[1749300771759,0.59854586,105610.0,105600.0,0.9791384]
[1749300771964,0.56614586,105610.0,105600.0,0.9791384]
[1749300772921,0.57561394,105610.0,105600.0,0.9791384]
[1749300773125,0.57561385,105610.0,105600.0,0.9791384]
[1749300773734,0.56614586,105610.0,105600.0,0.9791384]
[1749300774277,0.56614586,105610.0,105600.0,1.40288195]
[1749300774482,0.56614586,105610.0,105600.0,1.37388195]
[1749300774664,0.56614586,105610.0,105600.0,0.9791384]
[1749300775733,0.57561385,105610.0,105600.0,0.9791384]
[1749300775934,0.57561385,105610.0,105600.0,0.5903784]
[1749300776147,0.60631385,105610.0,105600.0,0.9789784]
[1749300778015,0.61578202,105610.0,105600.0,0.9789784]
[1749300778703,0.60631385,105610.0,105600.0,0.9789784]
[1749300779417,0.61578193,105610.0,105600.0,0.9789784]
[1749300780286,0.60631394,105610.0,105600.0,0.9789784]
[1749300780776,0.61578211,105610.0,105600.0,0.9789784]
[1749300780916,0.60631394,105610.0,105600.0,0.9789784]
[1749300781549,0.60631385,105610.0,105600.0,0.9789784]
[1749300781985,0.59684586,105610.0,105600.0,0.9789784]
[1749300782524,0.56614586,105610.0,105600.0,0.9789784]
[1749300784689,0.56614586,105610.0,105600.0,0.9946784]
[1749300785078,0.56614586,105610.0,105600.0,0.9789784]
[1749300786022,0.57561385,105610.0,105600.0,0.9789784]
[1749300787332,0.60791385,105610.0,105600.0,0.9789784]
[1749300788062,0.61738202,105610.0,105600.0,0.9789784]
[1749300788277,0.61738193,105610.0,105600.0,0.9789784]
[1749300788811,0.61738193,105610.0,105600.0,0.5903784]
[1749300789016,0.61738193,105610.0,105600.0,0.9784584]
[1749300789517,0.60791385,105610.0,105600.0,0.9784584]
[1749300791625,0.59844586,105610.0,105600.0,0.9784584]
[1749300792090,0.56614586,105610.0,105600.0,0.9784584]
[1749300793354,0.56614586,105610.0,105600.0,1.37317976]
[1749300794140,0.60681394,105610.0,105600.0,1.37309976]
[1749300794351,0.6162822,105610.0,105600.0,1.37309976]
[1749300794743,0.60681394,105610.0,105600.0,0.9783784]
[1749300794944,0.60681394,105610.0,105600.0,0.5903784]
[1749300795172,0.60681394,105610.0,105600.0,0.9783784]
[1749300795823,0.60681394,105610.0,105600.0,1.38210372]
[1749300796250,0.60681394,105610.0,105600.0,1.38206372]
[1749300796613,0.82459526,105610.0,105600.0,0.58090934]
[1749300796879,0.63521917,105610.0,105600.0,0.9783384]
[1749300797392,1.20984845,105610.0,105600.0,0.37257648]
[1749300797548,1.20038028,105610.0,105600.0,0.63568]
[1749300797766,1.20038028,105610.0,105600.0,0.24772]
[1749300797967,1.20038028,105610.0,105600.0,0.63568]
[1749300798380,1.20038028,105610.0,105600.0,0.83454362]
[1749300798533,1.20038028,105610.0,105600.0,0.84401322]
[1749300798739,1.20704241,105610.0,105600.0,0.84401322]
[1749300798944,1.20038028,105610.0,105600.0,0.84401322]
[1749300799155,0.80565892,105610.0,105600.0,0.85348273]
[1749300799563,0.80565892,105610.0,105600.0,0.64514969]
[1749300799771,0.80565892,105610.0,105600.0,0.65461929]
[1749300801054,0.80565892,105610.0,105600.0,0.64514969]
[1749300801253,1.19103836,105610.0,105600.0,0.64514969]
[1749300801483,1.19103836,105610.0,105600.0,0.65461929]
[1749300801690,1.19103836,105610.0,105600.0,0.24772]
[1749300801860,1.19103836,105610.0,105600.0,0.6356]
[1749300802814,1.19103836,105610.0,105600.0,0.64506969]
[1749300803463,1.19103836,105610.0,105600.0,0.65453929]
[1749300803672,1.19103836,105610.0,105600.0,0.84393322]
[1749300804098,1.19103836,105610.0,105600.0,0.64506969]
[1749300804317,1.19103836,105610.0,105600.0,0.83446362]
[1749300804498,1.19103836,105610.0,105600.0,0.6356]
[1749300804730,1.19103836,105610.0,105600.0,0.64506969]
[1749300804933,1.19103836,105610.0,105600.0,0.65453929]
[1749300805347,1.19103836,105610.0,105600.0,0.85340273]
[1749300805574,1.19103836,105610.0,105600.0,0.86287215]
[1749300805781,1.19103836,105610.0,105600.0,0.47499215]
[1749300805985,1.19103836,105610.0,105600.0,0.86283215]
[1749300806401,1.19103836,105610.0,105600.0,0.87230148]
[1749300806638,1.19103836,105610.0,105600.0,0.86283215]
[1749300808012,1.19503836,105610.0,105600.0,0.86283215]
[1749300811494,1.19503836,105610.0,105600.0,0.87230148]
[1749300815036,1.22344422,105610.0,105600.0,0.86283179]
[1749300815262,0.82859634,105610.0,105600.0,0.86283179]
[1749300816159,0.82859634,105610.0,105600.0,0.87230103]
[1749300817042,0.82859634,105610.0,105600.0,0.87230058]
[1749300817266,0.57961403,105610.0,105600.0,0.96869961]
[1749300817501,0.60114586,105610.0,105600.0,0.96869961]
[1749300817722,0.61061394,105610.0,105600.0,0.96869961]
[1749300818453,0.81892691,105610.0,105600.0,0.94976203]
[1749300818700,0.80945883,105610.0,105600.0,0.94976221]
[1749300818916,0.80945883,105610.0,105600.0,0.95923154]
[1749300819143,0.80945883,105610.0,105600.0,0.96870069]
[1749300819362,0.62008283,105610.0,105600.0,0.96870069]
[1749300819559,0.62955154,105610.0,105600.0,0.96870006]
[1749300820005,0.62008283,105610.0,105600.0,0.96891951]
[1749300820214,0.80945883,105610.0,105600.0,0.44680298]